fUSD/lending_fUSD_20251112
["ID","MTS","AMOUNT","RATE_DAILY","PERIOD"]
[393761284,1762968639437,-35185.09578968,0.000225,2]
[393761285,1762968639447,-518.33287753,0.0002271,2]
[393761286,1762968639457,-19216.17678615,0.000229,2]
[393761287,1762968639466,-435.82522262,0.00023,2]
[393761288,1762968639476,-998.37895663,0.00023,2]
[393761289,1762968639486,-2562.04972437,0.000231,2]
[393761290,1762968639495,-789.81,0.00023143,2]
[393761291,1762968639506,-51694.98800663,0.000232,2]
[393761292,1762968639515,-1517.0,0.00023552,2]
[393761293,1762968639525,-5933.81805079,0.00023601,2]
[393761294,1762968639536,-20750.31739361,0.00023649,2]
[393761295,1762968639546,-1348.81394157,0.00023938,2]
[393761296,1762968639556,-6453.0,0.00024156,2]
[393761297,1762968639565,-789.81,0.00024159,2]
[393761298,1762968639574,-9999.99,0.00024174,2]
[393761299,1762968639587,-150.0,0.00024238,2]
[393761300,1762968639597,-162.34780758,0.00024238,2]
[393761301,1762968639607,-150.15698566,0.00024238,2]
[393761302,1762968639617,-182.78404564,0.00024785,2]
[393761303,1762968639627,-320204.028258,0.000249,3]
[393761304,1762968639639,-251.17153768,0.000249,2]
[393761305,1762968639649,-601.8593065,0.00025,2]
[393761306,1762968639660,-205.19004037,0.00025,2]
[393761307,1762968639670,-1764.78354744,0.00025,2]
[393761308,1762968639679,-1801.37377856,0.00025,2]
[393761309,1762968639689,-4747.03738041,0.00025,3]
[393761310,1762968639698,-6305.52238011,0.00025,15]
[393761311,1762968639708,-789.81,0.00025175,2]
[393761312,1762968639718,-5933.81805077,0.00025462,2]
[393761313,1762968639727,-12399.10154954,0.00025879,2]
[393761314,1762968639736,-4472.17470445,0.00026,2]
[393761315,1762968639746,-789.81,0.00026191,2]
[393761316,1762968639755,-1348.81394157,0.00026198,2]
[393761317,1762968639766,-510.0,0.00026572,2]
[393761318,1762968639776,-367.40927527,0.00026648,2]
[393761319,1762968639792,-150.0,0.00026966,2]
[393761320,1762968639802,-789.81,0.00027207,2]
[393761321,1762968639812,-150.73,0.0002729,2]
[393761322,1762968639822,-11788.06,0.000273,7]
[393761323,1762968639832,-5933.81805077,0.00027323,2]
[393761324,1762968639843,-806.32,0.000274,7]
[393761325,1762968639853,-2027.28,0.000274,2]
[393761326,1762968639863,-1429.21700296,0.00027777,2]
[393761327,1762968639874,-254.36085283,0.00028,60]
[393761328,1762968639885,-789.81,0.00028224,2]
[393761329,1762968639895,-196.63003146,0.00028333,5]
[393761330,1762968639905,-2461.14248626,0.00028333,2]
[393761331,1762968639915,-1348.81394157,0.00028457,2]
[393761332,1762968639926,-200.0,0.00028564,2]
[393761333,1762968639937,-5933.81805077,0.00029184,2]
[393761334,1762968639947,-151.0,0.00029222,2]
[393761335,1762968639958,-151.0,0.00029222,2]
[393761336,1762968639968,-151.0,0.00029222,2]
[393761337,1762968639979,-151.0,0.00029222,2]
[393761338,1762968639990,-151.0,0.00029222,2]
[393761339,1762968640001,-151.0,0.00029222,2]
[393761340,1762968640011,-151.0,0.00029222,2]
[393761341,1762968640021,-151.0,0.00029222,2]
[393761342,1762968640033,-214.31045293,0.00029222,2]
[393761343,1762968640043,-789.81,0.0002924,2]
[393761344,1762968640053,-5609.58073954,0.00029246,2]
[393761345,1762968640062,-302.80827461,0.0003,2]
[393761346,1762968640072,-184.00961881,0.0003013,30]
[393761347,1762968640081,-162.70330822,0.0003013,20]
[393761348,1762968640091,-183.6531986,0.0003015,10]
[393761349,1762968640101,-789.81,0.00030256,2]
[393761350,1762968640111,-253.818939,0.0003084,2]
[393761351,1762968640122,-837.24872815,0.00030872,2]
[393761352,1762968640132,-66494.79552558,0.0003095,2]
[393761353,1762968640142,-5933.81805077,0.00031045,2]
[393761354,1762968640152,-211.32,0.00031218,2]
[393761355,1762968640162,-789.81,0.00031272,2]
[393761356,1762968640175,-259.96952667,0.0003143,4]
[393761357,1762968640185,-1116.58233999,0.000315,120]
[393761358,1762968640195,-2770.0,0.00031871,5]
[393761359,1762968640204,-837.24872815,0.00031907,2]
[393761360,1762968640215,-1468.39086634,0.00032,120]
[393761361,1762968640225,-418.0,0.00032,120]
[393761362,1762968640235,-2027.28,0.00032,2]
[393761363,1762968640245,-478.56668374,0.00032274,2]
[393761364,1762968640255,-789.81,0.00032288,2]
[393761365,1762968640264,-882.4138929,0.000323,2]
[393761366,1762968640274,-11788.06,0.000323,7]
[393761367,1762968640286,-806.32,0.000326,30]
[393761368,1762968640296,-251.17153767,0.00032625,2]
[393761369,1762968640305,-2134.37,0.00032644,2]
[393761370,1762968640314,-3990.30965444,0.00032671,2]
[393761371,1762968640324,-156.71409346,0.00032877,7]
[393761372,1762968640333,-500.0,0.00032877,7]
[393761373,1762968640342,-500.0,0.00032877,7]
[393761374,1762968640352,-500.0,0.00032877,7]
[393761375,1762968640362,-500.0,0.00032877,7]
[393761376,1762968640371,-500.0,0.00032877,7]
[393761377,1762968640380,-500.0,0.00032877,7]
[393761378,1762968640390,-500.0,0.00032877,7]
[393761379,1762968640400,-500.0,0.00032877,7]
[393761380,1762968640409,-500.0,0.00032877,7]
[393761381,1762968640418,-500.0,0.00032877,7]
[393761383,1762968640427,-500.0,0.00032877,7]
[393761385,1762968640436,-500.0,0.00032877,7]
[393761387,1762968640445,-500.0,0.00032877,7]
[393761388,1762968640454,-500.0,0.00032877,7]
[393761390,1762968640463,-500.0,0.00032877,7]
[393761392,1762968640472,-560.75554246,0.00032877,7]
[393761394,1762968640482,-500.0,0.00032877,7]
[393761397,1762968640491,-500.0,0.00032877,7]
[393761399,1762968640500,-500.0,0.00032877,7]
[393761400,1762968640510,-500.0,0.00032877,7]
[393761401,1762968640519,-177.19657133,0.0003288,30]
[393761402,1762968640528,-177.19,0.0003288,30]
[393761403,1762968640537,-154.37668499,0.0003288,30]
[393761404,1762968640547,-154.37668499,0.0003288,30]
[393761405,1762968640556,-154.37668499,0.0003288,30]
[393761406,1762968640575,-154.37668499,0.0003288,30]
[393761407,1762968640585,-154.37668499,0.0003288,30]
[393761408,1762968640595,-154.37668499,0.0003288,30]
[393761409,1762968640604,-154.37668499,0.0003288,30]
[393761410,1762968640614,-154.37668499,0.0003288,30]
[393761411,1762968640624,-154.37668499,0.0003288,30]
[393761412,1762968640633,-154.37668499,0.0003288,30]
[393761413,1762968640643,-154.37668499,0.0003288,30]
[393761414,1762968640652,-154.37668499,0.0003288,30]
[393761415,1762968640662,-154.37668499,0.0003288,30]
[393761416,1762968640671,-154.37668499,0.0003288,30]
[393761417,1762968640681,-154.37668499,0.0003288,30]
[393761418,1762968640690,-154.37668499,0.0003288,30]
[393761419,1762968640700,-154.37,0.0003288,30]
[393761420,1762968640710,-306.18042522,0.0003288,30]
[393761421,1762968640720,-5933.81805077,0.00032905,2]
[393761422,1762968640730,-319.98014903,0.00033,2]
[393761423,1762968640740,-306.18042522,0.00033086,30]
[393761424,1762968640750,-1001.281,0.00033178,34]
[393761425,1762968640760,-504.0,0.00033178,2]
[393761426,1762968640770,-789.81,0.00033304,2]
[393761427,1762968640780,-306.18042522,0.0003349,30]
[393761428,1762968640790,-4107.0,0.00033572,2]
[393761429,1762968640799,-165.38346658,0.00033893,30]
[393761430,1762968640809,-306.18042522,0.00033893,30]
[393761431,1762968640819,-1012.86,0.00033905,2]
[393761432,1762968640828,-4106.0,0.00033951,2]
[393761433,1762968640838,-2605.57177993,0.00034,2]
[393761434,1762968640848,-314103.94,0.00034097,2]
[393761435,1762968640858,-166.66,0.00034244,30]
[393761436,1762968640868,-306.18042522,0.00034297,30]
[393761437,1762968640878,-4106.0,0.00034312,7]
[393761438,1762968640887,-789.81,0.0003432,2]
[393761439,1762968640898,-159.349384,0.0003452,20]
[393761440,1762968640908,-159.349384,0.0003452,20]
[393761441,1762968640918,-212.663426,0.0003452,20]
[393761442,1762968640928,-212.663426,0.0003452,20]
[393761443,1762968640938,-212.663426,0.0003452,20]
[393761444,1762968640948,-306.18042522,0.000347,30]
[393761445,1762968640957,-551.29,0.00034708,2]
[393761446,1762968640968,-751.0,0.00034766,7]
[393761447,1762968640978,-5933.81805077,0.00034766,2]
[393761448,1762968640988,-206.16063499,0.00034899,120]
[393761449,1762968640998,-751.0,0.000349,7]
[393761450,1762968641008,-181.67660261,0.000349,120]
[393761451,1762968641018,-166.66,0.00034965,30]
[393761452,1762968641028,-161.19045101,0.00035,14]
[393761453,1762968641037,-2027.28,0.00035,2]
[393761454,1762968641046,-751.0,0.00035062,2]
[393761455,1762968641056,-306.18042522,0.00035104,30]
[393761456,1762968641066,-171.0,0.00035179,2]
[393761457,1762968641075,-218.6,0.00035277,2]
[393761458,1762968641084,-11788.06,0.000353,14]
[393761459,1762968641094,-789.81,0.00035337,2]
[393761460,1762968641104,-751.0,0.00035342,2]
[393761461,1762968641117,-1041.81,0.00035424,2]
[393761462,1762968641127,-211.32,0.00035471,2]
[393761463,1762968641137,-751.0,0.00035497,2]
[393761464,1762968641146,-165.38346658,0.00035507,30]
[393761465,1762968641155,-306.18042522,0.00035507,30]
[393761466,1762968641165,-751.0,0.00035517,2]
[393761467,1762968641175,-168.0,0.00035535,2]
[393761468,1762968641187,-500.0,0.00035616,7]
[393761469,1762968641196,-500.0,0.00035616,7]
[393761470,1762968641206,-500.0,0.00035616,7]
[393761471,1762968641216,-500.0,0.00035616,7]
[393761472,1762968641227,-409.25405789,0.00035616,7]
[393761473,1762968641237,-500.0,0.00035616,7]
[393761474,1762968641246,-500.0,0.00035616,7]
[393761475,1762968641256,-500.0,0.00035616,7]
[393761476,1762968641265,-500.0,0.00035616,7]
[393761477,1762968641275,-500.0,0.00035616,7]
[393761478,1762968641285,-171.0,0.00035682,7]
[393761479,1762968641295,-166.66,0.00035686,30]
[393761480,1762968641304,-806.32,0.000357,30]
[393761481,1762968641315,-168.0,0.00035807,2]
[393761482,1762968641325,-306.18042522,0.00035911,30]
[393761483,1762968641335,-168.0,0.00035923,2]
[393761484,1762968641344,-163.0,0.00036,30]
[393761485,1762968641354,-8939.41841322,0.00036,120]
[393761486,1762968641363,-66538.33866894,0.000361,2]
[393761487,1762968641373,-751.0,0.00036132,7]
[393761488,1762968641383,-395.25909271,0.00036258,30]
[393761489,1762968641392,-28370.76,0.00036288,2]
[393761490,1762968641401,-306.18042522,0.00036314,30]
[393761491,1762968641411,-1000.0,0.00036326,2]
[393761492,1762968641421,-789.81,0.00036353,2]
[393761493,1762968641430,-2506.96,0.00036355,2]
[393761494,1762968641439,-1000.0,0.00036397,30]
[393761495,1762968641450,-1000.0,0.00036397,30]
[393761496,1762968641459,-166.66,0.00036407,30]
[393761497,1762968641470,-171.0,0.00036425,2]
[393761498,1762968641480,-168.0,0.00036444,2]
[393761499,1762968641490,-171.0,0.00036511,7]
[393761500,1762968641504,-152.0,0.00036524,3]
[393761501,1762968641515,-240.58,0.00036544,2]
[393761502,1762968641525,-2027.28,0.000366,2]
[393761503,1762968641536,-171.0,0.0003661,120]
[393761504,1762968641546,-5933.81805077,0.00036627,2]
[393761505,1762968641555,-306.18042522,0.00036718,30]
[393761506,1762968641565,-1588.66761652,0.000368,2]
[393761507,1762968641574,-32031.1558659,0.00037,5]
[393761508,1762968641583,-171.0,0.00037004,2]
[393761509,1762968641594,-165.38346658,0.00037121,30]
[393761510,1762968641604,-306.18042522,0.00037121,30]
[393761511,1762968641614,-166.66,0.00037128,30]
[393761512,1762968641624,-189.38521949,0.000372,120]
[393761513,1762968641634,-309.96036176,0.00037367,5]
[393761514,1762968641644,-789.81,0.00037369,2]
[393761515,1762968641654,-2143.0,0.00037406,2]
[393761516,1762968641663,-560.0,0.00037406,2]
[393761517,1762968641674,-306.18042522,0.00037525,30]
[393761518,1762968641684,-152.0,0.00037656,4]
[393761519,1762968641694,-171.0,0.000377,2]
[393761520,1762968641704,-150.0,0.00037799,7]
[393761521,1762968641714,-398.75,0.0003784,5]
[393761522,1762968641723,-166.66,0.00037849,30]
[393761523,1762968641733,-306.18042522,0.00037928,30]
[393761524,1762968641743,-16426.22859991,0.0003797,2]
[393761525,1762968641752,-15368.19613051,0.00038,2]
[393761526,1762968641762,-76497.02472379,0.00038,2]
[393761527,1762968641771,-500.0,0.00038137,2]
[393761528,1762968641781,-874.49,0.00038183,5]
[393761529,1762968641790,-306.18042522,0.00038332,30]
[393761530,1762968641799,-789.81,0.00038385,2]
[393761531,1762968641809,-806.32,0.000384,30]
[393761532,1762968641819,-5933.81805077,0.00038488,2]
[393761533,1762968641828,-192.11,0.00038504,14]
[393761534,1762968641838,-866.22,0.00038593,5]
[393761535,1762968641848,-1205.08355555,0.000386,120]
[393761536,1762968641859,-220.0,0.00038637,4]
[393761537,1762968641870,-165.38346658,0.00038735,120]
[393761538,1762968641880,-306.18042522,0.00038735,120]
[393761539,1762968641890,-152.0,0.00038787,5]
[393761540,1762968641900,-467.7493,0.000388,2]
[393761541,1762968641910,-176.26050927,0.000389,120]
[393761542,1762968641920,-198.89715072,0.000389,120]
[393761543,1762968641930,-862.64,0.00039136,5]
[393761544,1762968641939,-306.18042522,0.00039139,120]
[393761545,1762968641949,-789.81,0.00039401,2]
[393761546,1762968641959,-306.18042522,0.00039542,120]
[393761547,1762968641968,-151.0,0.00039675,2]
[393761548,1762968641978,-231.31807638,0.00039675,2]
[393761549,1762968641989,-4074.4451,0.00039723,2]
[393761550,1762968641998,-5968.9818,0.00039723,2]
[393761551,1762968642009,-162.66019293,0.00039772,7]
[393761552,1762968642018,-310.53,0.00039823,2]
[393761553,1762968642031,-275.294,0.00039823,2]
[393761554,1762968642042,-205.402,0.00039823,2]
[393761555,1762968642053,-601.21,0.00039823,2]
[393761556,1762968642064,-608.0,0.00039823,2]
[393761557,1762968642073,-560.692,0.00039823,2]
[393761558,1762968642083,-2000.0,0.000399,2]
[393761559,1762968642092,-152.0,0.00039918,6]
[393761560,1762968642102,-211.32,0.00039928,14]
[393761561,1762968642111,-306.18042522,0.00039946,120]
[393761562,1762968642120,-1183.40908712,0.0004,120]
[393761563,1762968642130,-4060.0,0.0004,120]
[393761564,1762968642139,-316.47033406,0.0004005,2]
[393761565,1762968642149,-500.0,0.00040087,30]
[393761566,1762968642159,-207.13782539,0.00040095,2]
[393761567,1762968642170,-176.26050927,0.000401,120]
[393761568,1762968642183,-198.89715072,0.000401,120]
[393761569,1762968642192,-500.0,0.00040115,30]
[393761570,1762968642203,-648.81874007,0.00040116,30]
[393761571,1762968642215,-211.32,0.00040132,14]
[393761572,1762968642225,-1626.0,0.000402,7]
[393761573,1762968642234,-234.5545,0.00040238,2]
[393761574,1762968642245,-1000.0,0.00040238,2]
[393761575,1762968642255,-5000.0,0.00040238,120]
[393761576,1762968642265,-2500.0,0.0004024,14]
[393761577,1762968642275,-2500.0,0.00040248,14]
[393761578,1762968642288,-2500.0,0.00040257,14]
[393761579,1762968642297,-159.26532498,0.00040263,30]
[393761580,1762968642306,-2500.0,0.00040266,14]
[393761581,1762968642315,-254.00577411,0.00040273,20]
[393761582,1762968642324,-500.0,0.00040273,20]
[393761583,1762968642333,-500.0,0.00040273,20]
[393761584,1762968642342,-500.0,0.00040273,20]
[393761585,1762968642351,-500.0,0.00040273,20]
[393761586,1762968642360,-500.0,0.00040273,20]
[393761587,1762968642370,-500.0,0.00040273,20]
[393761588,1762968642379,-200.0794546,0.00040273,20]
[393761589,1762968642388,-500.0,0.00040273,20]
[393761590,1762968642397,-500.0,0.00040273,20]
[393761591,1762968642407,-500.0,0.00040273,20]
[393761592,1762968642417,-500.0,0.00040273,20]
[393761593,1762968642427,-500.0,0.00040273,20]
[393761594,1762968642437,-500.0,0.00040273,20]
[393761595,1762968642447,-500.0,0.00040273,20]
[393761596,1762968642456,-460.15239049,0.00040273,20]
[393761597,1762968642466,-500.0,0.00040273,20]
[393761598,1762968642476,-500.0,0.00040273,20]
[393761599,1762968642485,-500.0,0.00040273,20]
[393761600,1762968642495,-500.0,0.00040273,20]
[393761601,1762968642505,-500.0,0.00040273,20]
[393761602,1762968642515,-500.0,0.00040273,20]
[393761603,1762968642524,-355.5505403,0.00040273,20]
[393761604,1762968642536,-500.0,0.00040273,20]
[393761605,1762968642545,-500.0,0.00040273,20]
[393761606,1762968642555,-500.0,0.00040273,20]
[393761607,1762968642564,-500.0,0.00040273,20]
[393761608,1762968642574,-500.0,0.00040273,20]
[393761609,1762968642583,-500.0,0.00040273,20]
[393761610,1762968642592,-500.0,0.00040273,20]
[393761611,1762968642602,-500.0,0.00040273,20]
[393761612,1762968642613,-500.0,0.00040273,20]
[393761613,1762968642623,-500.0,0.00040273,20]
[393761614,1762968642632,-500.0,0.00040273,20]
[393761615,1762968642642,-500.0,0.00040273,20]
[393761616,1762968642651,-500.0,0.00040273,20]
[393761617,1762968642661,-242.13522137,0.00040273,20]
[393761618,1762968642670,-500.0,0.00040273,20]
[393761619,1762968642680,-500.0,0.00040273,20]
[393761620,1762968642690,-372.90024771,0.00040273,20]
[393761621,1762968642700,-500.0,0.00040273,20]
[393761622,1762968642709,-500.0,0.00040273,20]
[393761623,1762968642719,-500.0,0.00040273,20]
[393761624,1762968642729,-500.0,0.00040273,20]
[393761625,1762968642739,-500.0,0.00040273,20]
[393761626,1762968642749,-500.0,0.00040273,20]
[393761628,1762968642759,-500.0,0.00040273,20]
[393761629,1762968642770,-348.5939109,0.00040273,20]
[393761630,1762968642783,-617.82212414,0.00040273,20]
[393761631,1762968642794,-500.0,0.00040273,20]
[393761632,1762968642803,-500.0,0.00040273,20]
[393761633,1762968642813,-500.0,0.00040273,20]
[393761634,1762968642823,-500.0,0.00040273,20]
[393761635,1762968642832,-500.0,0.00040273,20]
[393761636,1762968642842,-500.0,0.00040273,20]
[393761637,1762968642852,-500.0,0.00040273,20]
[393761638,1762968642862,-500.0,0.00040273,20]
[393761639,1762968642872,-500.0,0.00040273,20]
[393761640,1762968642883,-500.0,0.00040273,20]
[393761641,1762968642894,-500.0,0.00040273,20]
[393761642,1762968642904,-500.0,0.00040273,20]
[393761644,1762968642914,-461.77897433,0.00040273,20]
[393761645,1762968642924,-500.0,0.00040273,20]
[393761646,1762968642934,-500.0,0.00040273,20]
[393761647,1762968642943,-500.0,0.00040273,20]
[393761648,1762968642953,-500.0,0.00040273,20]
[393761649,1762968642963,-500.0,0.00040273,20]
[393761650,1762968642972,-500.0,0.00040273,20]
[393761651,1762968642982,-500.0,0.00040273,20]
[393761652,1762968642992,-500.0,0.00040273,20]
[393761653,1762968643002,-500.0,0.00040273,20]
[393761654,1762968643012,-379.29337459,0.00040273,20]
[393761655,1762968643023,-500.0,0.00040273,20]
[393761656,1762968643037,-508.42,0.00040273,20]
[393761657,1762968643046,-508.42,0.00040273,20]
[393761658,1762968643056,-508.42,0.00040273,20]
[393761659,1762968643065,-508.42,0.00040273,20]
[393761660,1762968643076,-508.42,0.00040273,20]
[393761661,1762968643251,-508.42,0.00040273,20]
[393761662,1762968643263,-508.42,0.00040273,20]
[393761663,1762968643273,-508.42,0.00040273,20]
[393761664,1762968643286,-508.42,0.00040273,20]
[393761665,1762968643295,-508.42,0.00040273,20]
[393761666,1762968643304,-508.42,0.00040273,20]
[393761667,1762968643313,-508.42,0.00040273,20]
[393761668,1762968643323,-508.42,0.00040273,20]
[393761669,1762968643332,-508.42,0.00040273,20]
[393761670,1762968643342,-508.42,0.00040273,20]
[393761671,1762968643351,-508.42,0.00040273,20]
[393761672,1762968643361,-508.42,0.00040273,20]
[393761673,1762968643371,-508.42,0.00040273,20]
[393761674,1762968643381,-508.42,0.00040273,20]
[393761675,1762968643390,-508.42,0.00040273,20]
[393761676,1762968643400,-508.42,0.00040273,20]
[393761677,1762968643410,-508.42,0.00040273,20]
[393761678,1762968643419,-508.42,0.00040273,20]
[393761679,1762968643429,-508.50180969,0.00040273,20]
[393761680,1762968643439,-500.0,0.00040273,20]
[393761681,1762968643448,-500.0,0.00040273,20]
[393761682,1762968643458,-500.0,0.00040273,20]
[393761683,1762968643467,-500.0,0.00040273,20]
[393761684,1762968643478,-500.0,0.00040273,20]
[393761685,1762968643488,-500.0,0.00040273,20]
[393761686,1762968643498,-500.0,0.00040273,20]
[393761688,1762968643508,-500.0,0.00040273,20]
[393761690,1762968643517,-500.0,0.00040273,20]
[393761692,1762968643527,-500.0,0.00040273,20]
[393761694,1762968643538,-500.0,0.00040273,20]
[393761695,1762968643548,-500.0,0.00040273,20]
[393761696,1762968643558,-298.02760828,0.00040273,20]
[393761697,1762968643567,-740.37,0.00040273,20]
[393761698,1762968643577,-740.37,0.00040273,20]
[393761699,1762968643586,-740.37,0.00040273,20]
[393761700,1762968643595,-740.37,0.00040273,20]
[393761701,1762968643604,-740.37,0.00040273,20]
[393761702,1762968643613,-740.37,0.00040273,20]
[393761703,1762968643623,-740.37,0.00040273,20]
[393761704,1762968643632,-740.37,0.00040273,20]
[393761705,1762968643641,-740.37,0.00040273,20]
[393761706,1762968643651,-740.37,0.00040273,20]
[393761707,1762968643660,-740.37,0.00040273,20]
[393761708,1762968643669,-740.37,0.00040273,20]
[393761709,1762968643677,-740.37,0.00040273,20]
[393761710,1762968643687,-740.37,0.00040273,20]
[393761711,1762968643695,-740.37,0.00040273,20]
[393761712,1762968643705,-740.37,0.00040273,20]
[393761713,1762968643715,-740.37,0.00040273,20]
[393761714,1762968643724,-740.37,0.00040273,20]
[393761715,1762968643733,-740.37,0.00040273,20]
[393761716,1762968643743,-740.37,0.00040273,20]
[393761717,1762968643752,-740.37,0.00040273,20]
[393761718,1762968643761,-740.37,0.00040273,20]
[393761719,1762968643771,-740.37,0.00040273,20]
[393761720,1762968643780,-740.58869486,0.00040273,20]
[393761721,1762968643793,-500.0,0.00040273,20]
[393761722,1762968643802,-500.0,0.00040273,20]
[393761723,1762968643811,-500.0,0.00040273,20]
[393761724,1762968643821,-500.0,0.00040273,20]
[393761725,1762968643831,-500.0,0.00040273,20]
[393761726,1762968643839,-500.0,0.00040273,20]
[393761727,1762968643849,-500.0,0.00040273,20]
[393761728,1762968643858,-500.0,0.00040273,20]
[393761729,1762968643868,-500.0,0.00040273,20]
[393761730,1762968643877,-500.0,0.00040273,20]
[393761731,1762968643887,-500.0,0.00040273,20]
[393761732,1762968643897,-209.46985516,0.00040273,20]
[393761733,1762968643906,-500.0,0.00040273,20]
[393761734,1762968643916,-500.0,0.00040273,2]
[393761735,1762968643925,-297.55884697,0.00040273,2]
[393761736,1762968643935,-500.0,0.00040273,20]
[393761737,1762968643944,-500.0,0.00040273,20]
[393761738,1762968643953,-606.2776745,0.00040273,20]
[393761739,1762968643963,-372.4,0.00040273,20]
[393761740,1762968643972,-500.0,0.00040273,20]
[393761741,1762968643982,-500.0,0.00040273,20]
[393761742,1762968643992,-500.0,0.00040273,20]
[393761743,1762968644003,-587.14117298,0.00040273,20]
[393761744,1762968644012,-318.5330868,0.00040273,20]
[393761745,1762968644022,-500.0,0.00040273,20]
[393761746,1762968644031,-500.0,0.00040273,20]
[393761747,1762968644041,-500.0,0.00040273,20]
[393761748,1762968644052,-500.0,0.00040273,20]
[393761749,1762968644061,-500.0,0.00040273,20]
[393761750,1762968644070,-500.0,0.00040273,2]
[393761751,1762968644080,-500.0,0.00040273,2]
[393761752,1762968644089,-500.0,0.00040273,20]
[393761753,1762968644098,-500.0,0.00040273,2]
[393761754,1762968644107,-500.0,0.00040273,20]
[393761755,1762968644117,-500.0,0.00040273,20]
[393761756,1762968644126,-500.0,0.00040273,20]
[393761757,1762968644135,-500.0,0.00040273,20]
[393761758,1762968644146,-500.0,0.00040273,20]
[393761759,1762968644155,-373.26754301,0.00040273,20]
[393761760,1762968644164,-500.0,0.00040273,20]
[393761761,1762968644174,-500.0,0.00040273,20]
[393761762,1762968644187,-500.0,0.00040273,20]
[393761763,1762968644196,-500.0,0.00040273,20]
[393761764,1762968644205,-500.0,0.00040273,20]
[393761765,1762968644215,-500.0,0.00040273,20]
[393761766,1762968644224,-500.0,0.00040273,20]
[393761767,1762968644234,-500.0,0.00040273,20]
[393761768,1762968644243,-500.0,0.00040273,20]
[393761769,1762968644254,-485.05606588,0.00040273,20]
[393761770,1762968644263,-500.0,0.00040273,20]
[393761771,1762968644272,-500.0,0.00040273,20]
[393761772,1762968644281,-500.0,0.00040273,20]
[393761773,1762968644291,-560.46829702,0.00040273,20]
[393761774,1762968644301,-500.0,0.00040273,20]
[393761775,1762968644310,-500.0,0.00040273,20]
[393761776,1762968644319,-500.0,0.00040273,20]
[393761777,1762968644328,-500.0,0.00040273,20]
[393761778,1762968644337,-500.0,0.00040273,20]
[393761779,1762968644347,-500.0,0.00040273,20]
[393761780,1762968644355,-500.0,0.00040273,20]
[393761781,1762968644365,-500.0,0.00040273,20]
[393761782,1762968644374,-500.0,0.00040273,20]
[393761783,1762968644383,-500.0,0.00040273,20]
[393761784,1762968644392,-500.0,0.00040273,20]
[393761785,1762968644401,-500.0,0.00040273,20]
[393761786,1762968644411,-500.0,0.00040273,20]
[393761787,1762968644420,-500.0,0.00040273,20]
[393761788,1762968644429,-500.0,0.00040273,20]
[393761789,1762968644438,-500.0,0.00040273,20]
[393761790,1762968644447,-500.0,0.00040273,20]
[393761791,1762968644457,-500.0,0.00040273,20]
[393761792,1762968644466,-500.0,0.00040273,20]
[393761793,1762968644476,-500.0,0.00040273,20]
[393761794,1762968644486,-500.0,0.00040273,20]
[393761795,1762968644496,-533.82,0.00040273,20]
[393761796,1762968644505,-500.0,0.00040273,20]
[393761797,1762968644515,-500.0,0.00040273,20]
[393761798,1762968644524,-500.0,0.00040273,20]